fUSD/lending_fUSD_20240114
["ID","MTS","AMOUNT","RATE_DAILY","PERIOD"]
[311603523,1705264290978,-500.0,0.00031232,2]
[311603524,1705264290987,-904.67,0.00031232,2]
[311603525,1705264290997,-500.0,0.00031232,2]
[311603526,1705264291006,-500.0,0.00031232,2]
[311603527,1705264291015,-500.0,0.00031232,2]
[311603528,1705264291024,-500.0,0.00031232,2]
[311603529,1705264291034,-500.0,0.00031232,2]
[311603530,1705264291044,-500.0,0.00031232,2]
[311603531,1705264291054,-500.0,0.00031232,2]
[311603532,1705264291063,-500.0,0.00031232,2]
[311603533,1705264291073,-500.0,0.00031232,2]
[311603534,1705264291083,-210.61,0.00031232,2]
[311603535,1705264291092,-508.74,0.00031232,2]
[311603536,1705264291101,-500.0,0.00031232,2]
[311603537,1705264291112,-500.0,0.00031232,2]
[311603538,1705264291121,-501.92,0.00031232,2]
[311603539,1705264291130,-500.0,0.00031232,2]
[311603540,1705264291143,-500.0,0.00031232,2]
[311603541,1705264291153,-502.98,0.00031232,2]
[311603542,1705264291162,-500.0,0.00031232,2]
[311603543,1705264291171,-549.05,0.00031232,2]
[311603544,1705264291182,-500.0,0.00031232,2]
[311603545,1705264291193,-500.0,0.00031232,2]
[311603546,1705264291203,-768.43,0.00031232,2]
[311603547,1705264291212,-500.0,0.00031232,2]
[311603548,1705264291223,-500.0,0.00031232,2]
[311603549,1705264291233,-733.75,0.00031232,2]
[311603550,1705264291242,-1482.34,0.00031232,2]
[311603551,1705264291251,-500.0,0.00031232,2]
[311603552,1705264291261,-500.0,0.00031232,2]
[311603553,1705264291272,-987.24,0.00031232,2]
[311603554,1705264291282,-500.0,0.00031232,2]
[311603555,1705264291291,-295.86258224,0.00031232,2]
[311603556,1705264291301,-525.61386189,0.00031232,2]
[311603557,1705264291311,-500.0,0.00031232,2]
[311603558,1705264291320,-500.0,0.00031232,2]
[311603559,1705264291330,-500.0,0.00031232,2]
[311603560,1705264291340,-305.58868232,0.00031232,2]
[311603561,1705264291349,-500.0,0.00031232,2]
[311603562,1705264291359,-167.37580783,0.00031232,2]
[311603563,1705264291369,-500.0,0.00031232,2]
[311603564,1705264291379,-522.06,0.00031232,2]
[311603565,1705264291388,-500.0,0.00031232,2]
[311603566,1705264291397,-902.15,0.00031232,2]
[311603567,1705264291407,-500.0,0.00031232,2]
[311603568,1705264291415,-500.0,0.00031232,2]
[311603569,1705264291425,-500.0,0.00031232,2]
[311603570,1705264291435,-500.0,0.00031232,2]
[311603571,1705264291444,-500.0,0.00031232,2]
[311603572,1705264291454,-500.0,0.00031232,2]
[311603573,1705264291463,-500.0,0.00031232,2]
[311603574,1705264291473,-500.0,0.00031232,2]
[311603575,1705264291483,-500.0,0.00031232,2]
[311603576,1705264291492,-631.17473478,0.00031232,2]
[311603577,1705264291502,-633.15,0.00031232,2]
[311603578,1705264291511,-500.0,0.00031232,2]
[311603579,1705264291520,-500.0,0.00031232,2]
[311603580,1705264291529,-733.43,0.00031232,2]
[311603581,1705264291538,-520.56836771,0.00031232,2]
[311603582,1705264291548,-681.94,0.00031232,2]
[311603583,1705264291557,-500.0,0.00031232,2]
[311603584,1705264291568,-500.0,0.00031232,2]
[311603585,1705264291577,-500.0,0.00031232,2]
[311603586,1705264291587,-500.0,0.00031232,2]
[311603587,1705264291597,-500.0,0.00031232,2]
[311603588,1705264291607,-861.38,0.00031232,2]
[311603589,1705264291616,-486.05742242,0.00031232,2]
[311603590,1705264291625,-607.46,0.00031232,2]
[311603591,1705264291635,-871.23,0.00031232,2]
[311603592,1705264291644,-731.62,0.00031232,2]
[311603593,1705264291654,-540.76,0.00031232,2]
[311603594,1705264291664,-500.0,0.00031232,2]
[311603595,1705264291674,-500.0,0.00031232,2]
[311603596,1705264291683,-491.17545645,0.00031232,2]
[311603597,1705264291693,-500.0,0.00031232,2]
[311603598,1705264291703,-500.0,0.00031232,2]
[311603599,1705264291713,-573.03,0.00031232,2]
[311603600,1705264291722,-500.0,0.00031232,2]
[311603601,1705264291732,-500.0,0.00031232,2]
[311603602,1705264291741,-500.0,0.00031232,2]
[311603603,1705264291751,-500.0,0.00031232,2]
[311603604,1705264291761,-500.0,0.00031232,2]
[311603605,1705264291770,-541.18,0.00031232,2]
[311603606,1705264291780,-500.0,0.00031232,2]
[311603607,1705264291790,-500.0,0.00031232,2]
[311603608,1705264291800,-1043.04,0.00031232,2]
[311603609,1705264291809,-524.14,0.00031232,2]
[311603610,1705264291819,-971.45,0.00031232,2]
[311603611,1705264291829,-720.76,0.00031232,2]
[311603612,1705264291839,-1331.65,0.00031232,2]
[311603613,1705264291849,-500.0,0.00031232,2]
[311603614,1705264291859,-500.0,0.00031232,2]
[311603615,1705264291868,-524.0915093,0.00031232,2]
[311603616,1705264291877,-500.0,0.00031232,2]
[311603617,1705264291887,-500.0,0.00031232,2]
[311603618,1705264291896,-500.0,0.00031232,2]
[311603619,1705264291906,-887.35,0.00031232,2]
[311603620,1705264291915,-1632.65,0.00031232,2]
[311603621,1705264291925,-1287.99,0.00031232,2]
[311603622,1705264291935,-500.0,0.00031232,2]
[311603623,1705264291944,-500.0,0.00031232,2]
[311603624,1705264291953,-500.0,0.00031232,2]
[311603625,1705264291963,-505.57544071,0.00031232,2]
[311603626,1705264291972,-500.0,0.00031232,2]
[311603627,1705264291982,-500.0,0.00031232,2]
[311603628,1705264291992,-568.32,0.00031232,2]
[311603629,1705264292002,-1075.72,0.00031232,2]
[311603630,1705264292012,-500.0,0.00031232,2]
[311603631,1705264292021,-966.98,0.00031232,2]
[311603632,1705264292031,-1190.52,0.00031232,2]
[311603633,1705264292041,-611.32,0.00031232,2]
[311603634,1705264292050,-500.0,0.00031232,2]
[311603635,1705264292060,-1150.22,0.00031232,2]
[311603636,1705264292069,-521.45906878,0.00031232,2]
[311603637,1705264292079,-804.23,0.00031232,2]
[311603638,1705264292088,-500.0,0.00031232,2]
[311603639,1705264292097,-881.95,0.00031232,2]
[311603640,1705264292108,-500.0,0.00031232,2]
[311603641,1705264292117,-500.0,0.00031232,2]
[311603642,1705264292127,-500.0,0.00031232,2]
[311603643,1705264292137,-523.69,0.00031232,2]
[311603644,1705264292149,-604.18,0.00031232,2]
[311603645,1705264292159,-737.47,0.00031232,2]
[311603646,1705264292168,-500.0,0.00031232,2]
[311603647,1705264292178,-500.0,0.00031232,2]
[311603648,1705264292187,-500.0,0.00031232,2]
[311603649,1705264292197,-500.0,0.00031232,2]
[311603650,1705264292207,-816.74,0.00031232,2]
[311603651,1705264292216,-500.0,0.00031232,2]
[311603652,1705264292241,-500.0,0.00031232,2]
[311603653,1705264292264,-500.0,0.00031232,2]
[311603654,1705264292274,-1018.42,0.00031232,2]
[311603655,1705264292283,-500.0,0.00031232,2]
[311603656,1705264292293,-525.16685886,0.00031232,2]
[311603657,1705264292303,-691.77,0.00031232,2]
[311603658,1705264292314,-500.0,0.00031232,2]
[311603659,1705264292323,-532.86,0.00031232,2]
[311603660,1705264292333,-500.0,0.00031232,2]
[311603661,1705264292344,-500.0,0.00031232,2]
[311603662,1705264292354,-500.0,0.00031232,2]
[311603663,1705264292365,-500.0,0.00031232,2]
[311603664,1705264292375,-500.0,0.00031232,2]
[311603665,1705264292384,-500.0,0.00031232,2]
[311603666,1705264292393,-500.0,0.00031232,2]
[311603667,1705264292402,-624.45,0.00031232,2]
[311603668,1705264292412,-592.67,0.00031232,2]
[311603669,1705264292422,-500.0,0.00031232,2]
[311603670,1705264292432,-840.8,0.00031232,2]
[311603671,1705264292442,-1035.43,0.00031232,2]
[311603672,1705264292452,-901.33,0.00031232,2]
[311603673,1705264292462,-500.0,0.00031232,2]
[311603674,1705264292471,-500.0,0.00031232,2]
[311603675,1705264292481,-983.46,0.00031232,2]
[311603676,1705264292491,-506.93759549,0.00031232,2]
[311603677,1705264292500,-500.0,0.00031232,2]
[311603678,1705264292509,-705.45,0.00031232,2]
[311603679,1705264292519,-500.0,0.00031232,2]
[311603680,1705264292528,-511.79,0.00031232,2]
[311603681,1705264292537,-500.0,0.00031232,2]
[311603682,1705264292547,-531.03,0.00031232,2]
[311603683,1705264292556,-500.0,0.00031232,2]
[311603684,1705264292566,-583.5,0.00031232,2]
[311603685,1705264292575,-500.0,0.00031232,2]
[311603686,1705264292584,-652.55,0.00031232,2]
[311603687,1705264292593,-500.0,0.00031232,2]
[311603688,1705264292603,-500.0,0.00031232,2]
[311603689,1705264292614,-519.09,0.00031232,2]
[311603690,1705264292625,-500.0,0.00031232,2]
[311603691,1705264292637,-603.94,0.00031232,2]
[311603692,1705264292646,-782.01,0.00031232,2]
[311603693,1705264292655,-919.27,0.00031232,2]
[311603694,1705264292664,-655.09,0.00031232,2]
[311603695,1705264292673,-848.01,0.00031232,2]
[311603696,1705264292691,-500.0,0.00031232,2]
[311603697,1705264292704,-300.0,0.00031232,2]
[311603698,1705264292714,-202.4692669,0.00031232,2]
[311603699,1705264292723,-500.0,0.00031232,2]
[311603700,1705264292732,-500.0,0.00031232,2]
[311603701,1705264292743,-500.0,0.00031232,2]
[311603702,1705264292752,-512.56,0.00031232,2]
[311603703,1705264292763,-912.72,0.00031232,2]
[311603704,1705264292773,-773.77,0.00031232,2]
[311603705,1705264292784,-932.74,0.00031232,2]
[311603706,1705264292794,-500.0,0.00031232,2]
[311603707,1705264292805,-672.78,0.00031232,2]
[311603708,1705264292814,-500.0,0.00031232,2]
[311603709,1705264292824,-500.0,0.00031232,2]
[311603710,1705264292833,-675.44,0.00031232,2]
[311603711,1705264292842,-592.65,0.00031232,2]
[311603712,1705264292852,-812.07,0.00031232,2]
[311603713,1705264292862,-623.53,0.00031232,2]
[311603714,1705264292871,-500.0,0.00031232,2]
[311603715,1705264292881,-500.0,0.00031232,2]
[311603716,1705264292891,-901.97,0.00031232,2]
[311603717,1705264292900,-584.39,0.00031232,2]
[311603718,1705264292910,-500.0,0.00031232,2]
[311603719,1705264292919,-652.39,0.00031232,2]
[311603720,1705264292928,-500.0,0.00031232,2]
[311603721,1705264292938,-500.0,0.00031232,2]
[311603722,1705264292948,-500.0,0.00031232,2]
[311603723,1705264292957,-1030.54,0.00031232,2]
[311603724,1705264292967,-500.0,0.00031232,2]
[311603725,1705264292976,-500.0,0.00031232,2]
[311603726,1705264292986,-500.0,0.00031232,2]
[311603727,1705264292995,-500.0,0.00031232,2]
[311603728,1705264293005,-500.0,0.00031232,2]
[311603729,1705264293014,-1012.56,0.00031232,2]
[311603730,1705264293023,-602.82,0.00031232,2]
[311603731,1705264293033,-763.69,0.00031232,2]
[311603732,1705264293043,-500.0,0.00031232,2]
[311603733,1705264293052,-500.0,0.00031232,2]
[311603734,1705264293062,-239.5907305,0.00031232,2]
[311603735,1705264293071,-525.95,0.00031232,2]
[311603736,1705264293081,-570.93935159,0.00031232,2]
[311603737,1705264293090,-500.0,0.00031232,2]
[311603738,1705264293100,-500.0,0.00031232,2]
[311603739,1705264293109,-500.0,0.00031232,2]
[311603740,1705264293118,-507.67,0.00031232,2]
[311603741,1705264293126,-640.71359333,0.00031232,2]
[311603742,1705264293136,-513.81,0.00031232,2]
[311603743,1705264293146,-636.62,0.00031232,2]
[311603744,1705264293158,-500.0,0.00031232,2]
[311603745,1705264293168,-902.91,0.00031232,2]
[311603746,1705264293178,-767.34,0.00031232,2]
[311603747,1705264293187,-168.56986609,0.00031232,2]
[311603748,1705264293198,-1333.47,0.00031232,2]
[311603749,1705264293208,-638.06,0.00031232,2]
[311603750,1705264293218,-500.0,0.00031232,2]
[311603751,1705264293229,-803.03,0.00031232,2]
[311603752,1705264293238,-500.0,0.00031232,2]
[311603753,1705264293247,-500.0,0.00031232,2]
[311603754,1705264293257,-500.0,0.00031232,2]
[311603755,1705264293267,-500.0,0.00031232,2]
[311603756,1705264293277,-505.26486423,0.00031232,2]
[311603757,1705264293287,-536.45,0.00031232,2]
[311603758,1705264293297,-500.0,0.00031232,2]
[311603759,1705264293307,-598.26,0.00031232,2]
[311603760,1705264293316,-661.41,0.00031232,2]
[311603761,1705264293326,-500.0,0.00031232,2]
[311603762,1705264293336,-1303.11,0.00031232,2]
[311603763,1705264293345,-500.0,0.00031232,2]
[311603764,1705264293354,-776.96,0.00031232,2]
[311603765,1705264293365,-500.0,0.00031232,2]
[311603766,1705264293375,-619.53,0.00031232,2]
[311603767,1705264293385,-583.54,0.00031232,2]
[311603768,1705264293394,-500.0,0.00031232,2]
[311603769,1705264293404,-1031.14,0.00031232,2]
[311603770,1705264293413,-500.0,0.00031232,2]
[311603771,1705264293423,-1069.22,0.00031232,2]
[311603772,1705264293432,-668.9,0.00031232,2]
[311603773,1705264293442,-500.0,0.00031232,2]
[311603774,1705264293451,-500.0,0.00031232,2]
[311603775,1705264293461,-500.0,0.00031232,2]
[311603776,1705264293471,-500.0,0.00031232,2]
[311603777,1705264293481,-500.0,0.00031232,2]
[311603778,1705264293490,-522.71,0.00031232,2]
[311603779,1705264293499,-500.0,0.00031232,2]
[311603780,1705264293509,-500.0,0.00031232,2]
[311603781,1705264293519,-623.93,0.00031232,2]
[311603782,1705264293528,-524.27,0.00031232,2]
[311603783,1705264293538,-1298.17,0.00031232,2]
[311603784,1705264293548,-500.0,0.00031232,2]
[311603785,1705264293557,-183.90905522,0.00031232,2]
[311603786,1705264293567,-500.0,0.00031232,2]
[311603787,1705264293576,-705.28,0.00031232,2]
[311603788,1705264293586,-553.43,0.00031232,2]
[311603789,1705264293595,-841.22,0.00031232,2]
[311603790,1705264293605,-779.76,0.00031232,2]
[311603791,1705264293618,-500.0,0.00031232,2]
[311603792,1705264293627,-594.72,0.00031232,2]
[311603793,1705264293636,-663.62,0.00031232,2]
[311603794,1705264293646,-754.6,0.00031232,2]
[311603795,1705264293655,-971.46,0.00031232,2]
[311603796,1705264293665,-500.0,0.00031232,2]
[311603797,1705264293674,-500.0,0.00031232,2]
[311603798,1705264293683,-500.0,0.00031232,2]
[311603799,1705264293693,-500.0,0.00031232,2]
[311603800,1705264293702,-500.0,0.00031232,2]
[311603801,1705264293711,-640.22,0.00031232,2]
[311603802,1705264293720,-880.9,0.00031232,2]
[311603803,1705264293730,-500.0,0.00031232,2]
[311603804,1705264293739,-1002.82,0.00031232,2]
[311603805,1705264293749,-668.12,0.00031232,2]
[311603806,1705264293758,-690.19,0.00031232,2]
[311603807,1705264293767,-604.35,0.00031232,2]
[311603808,1705264293777,-500.0,0.00031232,2]
[311603809,1705264293786,-500.0,0.00031232,2]
[311603810,1705264293795,-688.38,0.00031232,2]
[311603811,1705264293804,-619.28,0.00031232,2]
[311603812,1705264293814,-500.0,0.00031232,2]
[311603813,1705264293823,-529.02,0.00031232,2]
[311603814,1705264293833,-779.6,0.00031232,2]
[311603815,1705264293842,-500.0,0.00031232,2]
[311603816,1705264293853,-1160.15,0.00031232,2]
[311603817,1705264293864,-1042.53,0.00031232,2]
[311603818,1705264293874,-500.0,0.00031232,2]
[311603819,1705264293883,-500.0,0.00031232,2]
[311603820,1705264293893,-500.0,0.00031232,2]
[311603821,1705264293902,-500.0,0.00031232,2]
[311603822,1705264293912,-790.69,0.00031232,2]
[311603823,1705264293922,-684.1,0.00031232,2]
[311603824,1705264293931,-500.0,0.00031232,2]
[311603825,1705264293941,-647.62,0.00031232,2]
[311603826,1705264293951,-500.0,0.00031232,2]
[311603827,1705264293960,-500.0,0.00031232,2]
[311603828,1705264293969,-500.0,0.00031232,2]
[311603829,1705264293979,-500.0,0.00031232,2]
[311603830,1705264293989,-3167.32,0.00031232,2]
[311603831,1705264293999,-571.94,0.00031232,2]
[311603832,1705264294008,-567.97,0.00031232,2]
[311603833,1705264294019,-522.59,0.00031232,2]
[311603834,1705264294028,-500.0,0.00031232,2]
[311603835,1705264294038,-500.0,0.00031232,2]
[311603836,1705264294047,-500.0,0.00031232,2]
[311603837,1705264294057,-500.0,0.00031232,2]
[311603838,1705264294067,-500.0,0.00031232,2]
[311603839,1705264294076,-500.0,0.00031232,2]
[311603840,1705264294086,-500.0,0.00031232,2]
[311603841,1705264294095,-774.9,0.00031232,2]
[311603842,1705264294105,-500.0,0.00031232,2]
[311603843,1705264294114,-1088.65,0.00031232,2]
[311603844,1705264294124,-884.91,0.00031232,2]
[311603845,1705264294134,-537.49,0.00031232,2]
[311603846,1705264294143,-1154.9,0.00031232,2]
[311603847,1705264294156,-500.0,0.00031232,2]
[311603848,1705264294165,-500.0,0.00031232,2]
[311603849,1705264294340,-500.0,0.00031232,2]
[311603850,1705264294351,-766.25,0.00031232,2]
[311603851,1705264294361,-500.0,0.00031232,2]
[311603852,1705264294372,-500.0,0.00031232,2]
[311603853,1705264294382,-739.11,0.00031232,2]
[311603854,1705264294392,-500.0,0.00031232,2]
[311603855,1705264294402,-500.0,0.00031232,2]
[311603856,1705264294412,-2842.79,0.00031232,2]
[311603857,1705264294422,-703.48,0.00031232,2]
[311603858,1705264294432,-500.0,0.00031232,2]
[311603859,1705264294443,-500.0,0.00031232,2]
[311603860,1705264294453,-755.21,0.00031232,2]
[311603861,1705264294463,-500.0,0.00031232,2]
[311603862,1705264294473,-500.0,0.00031232,2]
[311603863,1705264294482,-500.0,0.00031232,2]
[311603864,1705264294491,-655.3,0.00031232,2]
[311603865,1705264294500,-500.0,0.00031232,2]
[311603866,1705264294510,-500.0,0.00031232,2]
[311603867,1705264294519,-649.3,0.00031232,2]
[311603868,1705264294528,-500.0,0.00031232,2]
[311603869,1705264294538,-1021.39,0.00031232,2]
[311603870,1705264294547,-500.0,0.00031232,2]
[311603871,1705264294557,-500.0,0.00031232,2]
[311603872,1705264294566,-1175.51,0.00031232,2]
[311603873,1705264294576,-500.0,0.00031232,2]
[311603874,1705264294586,-701.34,0.00031232,2]
[311603875,1705264294595,-686.32,0.00031232,2]
[311603876,1705264294604,-500.0,0.00031232,2]
[311603877,1705264294615,-1477.05,0.00031232,2]
[311603878,1705264294625,-956.76,0.00031232,2]
[311603879,1705264294634,-500.0,0.00031232,2]
[311603880,1705264294643,-500.0,0.00031232,2]
[311603881,1705264294653,-500.0,0.00031232,2]
[311603882,1705264294664,-500.0,0.00031232,2]
[311603883,1705264294674,-601.17,0.00031232,2]
[311603884,1705264294684,-500.0,0.00031232,2]
[311603885,1705264294694,-1476.27,0.00031232,2]
[311603886,1705264294705,-500.0,0.00031232,2]
[311603887,1705264294715,-1151.69,0.00031232,2]
[311603888,1705264294725,-1030.11,0.00031232,2]
[311603889,1705264294735,-815.37,0.00031232,2]
[311603890,1705264294746,-500.0,0.00031232,2]
[311603891,1705264294756,-500.0,0.00031232,2]
[311603892,1705264294765,-500.0,0.00031232,2]
[311603893,1705264294776,-500.0,0.00031232,2]
[311603894,1705264294785,-1060.69,0.00031232,2]
[311603895,1705264294795,-500.0,0.00031232,2]
[311603896,1705264294805,-500.0,0.00031232,2]
[311603897,1705264294815,-663.4,0.00031232,2]
[311603898,1705264294825,-500.0,0.00031232,2]
[311603899,1705264294835,-500.0,0.00031232,2]
[311603900,1705264294844,-500.0,0.00031232,2]
[311603901,1705264294854,-1567.33,0.00031232,2]
[311603902,1705264294863,-507.53,0.00031232,2]
[311603903,1705264294872,-690.39,0.00031232,2]
[311603904,1705264294882,-1087.14,0.00031232,2]
[311603905,1705264294891,-780.22,0.00031232,2]
[311603906,1705264294901,-1031.89,0.00031232,2]
[311603907,1705264294911,-500.0,0.00031232,2]
[311603908,1705264294921,-15692.02,0.00031232,2]
[311603909,1705264294930,-968.33,0.00031232,2]
[311603910,1705264294940,-720.95,0.00031232,2]
[311603911,1705264294950,-500.0,0.00031232,2]
[311603912,1705264294960,-4778.91,0.00031232,2]
[311603913,1705264294970,-4080.55,0.00031232,2]
[311603914,1705264294980,-500.0,0.00031232,2]
[311603915,1705264294989,-524.66,0.00031232,2]
[311603916,1705264294999,-1610.45,0.00031232,2]
[311603917,1705264295009,-1037.02,0.00031232,2]
[311603918,1705264295019,-500.0,0.00031232,2]
[311603919,1705264295028,-500.0,0.00031232,2]
[311603920,1705264295039,-500.0,0.00031232,2]
[311603921,1705264295050,-753.69,0.00031232,2]
[311603922,1705264295061,-512.48,0.00031232,2]
[311603923,1705264295071,-500.0,0.00031232,2]
[311603924,1705264295082,-819.18,0.00031232,2]
[311603925,1705264295093,-658.91,0.00031232,2]
[311603926,1705264295103,-500.0,0.00031232,2]
[311603927,1705264295113,-922.23,0.00031232,2]
[311603928,1705264295123,-1259.43,0.00031232,2]
[311603929,1705264295133,-908.29,0.00031232,2]
[311603930,1705264295145,-500.0,0.00031232,2]
[311603931,1705264295157,-500.0,0.00031232,2]
[311603932,1705264295168,-500.0,0.00031232,2]
[311603933,1705264295179,-500.0,0.00031232,2]
[311603934,1705264295191,-1934.5,0.00031232,2]
[311603935,1705264295202,-500.0,0.00031232,2]
[311603936,1705264295212,-1552.56,0.00031232,2]
[311603937,1705264295222,-500.0,0.00031232,2]
[311603938,1705264295236,-1783.71,0.00031232,2]
[311603939,1705264295247,-500.0,0.00031232,2]
[311603940,1705264295257,-813.78,0.00031232,2]
[311603941,1705264295267,-508.7,0.00031232,2]
[311603942,1705264295277,-1672.88,0.00031232,2]
[311603943,1705264295288,-887.69,0.00031232,2]
[311603944,1705264295297,-1426.72,0.00031232,2]
[311603945,1705264295307,-1249.33,0.00031232,2]
[311603946,1705264295316,-1118.87,0.00031232,2]
[311603947,1705264295326,-500.0,0.00031232,2]
[311603948,1705264295336,-5627.11,0.00031232,2]
[311603949,1705264295345,-1369.47,0.00031232,2]
[311603950,1705264295355,-575.47,0.00031232,2]
[311603951,1705264295366,-567.98,0.00031232,2]
[311603952,1705264295376,-570.84,0.00031232,2]
[311603953,1705264295385,-552.23,0.00031232,2]
[311603954,1705264295394,-599.67,0.00031232,2]
[311603955,1705264295404,-500.0,0.00031232,2]
[311603956,1705264295414,-682.29,0.00031232,2]
[311603957,1705264295423,-2554.34,0.00031232,2]
[311603958,1705264295433,-799.56,0.00031232,2]
[311603959,1705264295443,-1798.17,0.00031232,2]
[311603960,1705264295453,-1153.92,0.00031232,2]
[311603961,1705264295463,-500.0,0.00031232,2]
[311603962,1705264295473,-500.0,0.00031232,2]
[311603963,1705264295483,-2674.9,0.00031232,2]
[311603964,1705264295493,-595.07725147,0.00031232,2]
[311603965,1705264295503,-4747.99,0.00031232,2]
[311603966,1705264295512,-350.3226214,0.00031232,2]
[311603967,1705264295522,-874.04,0.00031232,2]
[311603968,1705264295531,-500.0,0.00031232,2]
[311603969,1705264295541,-522.44,0.00031232,2]
[311603970,1705264295550,-3082.22,0.00031232,2]
[311603971,1705264295560,-500.0,0.00031232,2]
[311603972,1705264295570,-1501.1,0.00031232,2]
[311603973,1705264295579,-2400.47,0.00031232,2]
[311603974,1705264295589,-953.45,0.00031232,2]
[311603975,1705264295598,-1591.7,0.00031232,2]
[311603976,1705264295608,-500.0,0.00031232,2]
[311603977,1705264295617,-500.0,0.00031232,2]
[311603978,1705264295626,-1195.23,0.00031232,2]
[311603979,1705264295636,-500.0,0.00031232,2]
[311603980,1705264295646,-500.0,0.00031232,2]
[311603981,1705264295656,-830.52,0.00031232,2]
[311603982,1705264295665,-645.86,0.00031232,2]
[311603983,1705264295675,-500.0,0.00031232,2]
[311603984,1705264295684,-500.0,0.00031232,2]
[311603985,1705264295694,-500.0,0.00031232,2]
[311603986,1705264295704,-1563.61,0.00031232,2]
[311603987,1705264295713,-552.65,0.00031232,2]
[311603988,1705264295723,-500.0,0.00031232,2]
[311603989,1705264295733,-166.46,0.00031232,2]
[311603990,1705264295743,-1788.89,0.00031232,2]
[311603991,1705264295753,-3852.95,0.00031232,2]
[311603992,1705264295763,-500.0,0.00031232,2]
[311603993,1705264295774,-3780.57,0.00031232,2]
[311603994,1705264295784,-689.0,0.00031232,2]
[311603995,1705264295794,-500.0,0.00031232,2]
[311603996,1705264295805,-1026.83,0.00031232,2]
[311603997,1705264295814,-1077.68,0.00031232,2]
[311603998,1705264295824,-543.18,0.00031232,2]
[311603999,1705264295835,-500.0,0.00031232,2]
[311604000,1705264295845,-3887.42,0.00031232,2]
[311604001,1705264295861,-500.0,0.00031232,2]
[311604002,1705264295874,-8222.74,0.00031232,2]
[311604003,1705264295885,-706.36,0.00031232,2]
[311604004,1705264295897,-1212.77,0.00031232,2]
[311604005,1705264295914,-1605.08,0.00031232,2]
[311604006,1705264295925,-3010.13,0.00031232,2]
[311604007,1705264295935,-500.0,0.00031232,2]
[311604008,1705264295947,-500.0,0.00031232,2]
[311604009,1705264295958,-967.6,0.00031232,2]
[311604010,1705264295968,-500.0,0.00031232,2]
[311604011,1705264295978,-913.46,0.00031232,2]
[311604012,1705264295989,-3703.12,0.00031232,2]
[311604013,1705264295999,-379.68,0.00031232,2]
[311604014,1705264296009,-583.22,0.00031232,2]
[311604015,1705264296019,-30649.83,0.00031232,2]
[311604016,1705264296029,-3434.07,0.00031232,2]
[311604017,1705264296039,-500.0,0.00031232,2]
[311604018,1705264296049,-965.74,0.00031232,2]
[311604019,1705264296059,-1729.11,0.00031232,2]
[311604020,1705264296071,-842.61,0.00031232,2]
[311604021,1705264296081,-11897.09,0.00031232,2]
[311604022,1705264296091,-500.0,0.00031232,2]